Workbook

Sheet Painel de Controle KPI
A1: PAINEL DE CONTROLE KPI
A81: Learn More About Dashboards in Smartsheet

Sheet Dados KPI
A1: DADOS KPI
A2: PRODUTOS | C2: ORÇAMENTO | F2: DESPESA LÍQUIDA | H2: RENDA | K2: MARGENS DE LUCRO
A3: NO. | B3: NOME | C3: OBJETIVO | D3: ATUAL | E3: RESIDUAL | F3: ADICIONAL | G3: TOTAL | H3: OBJETIVO | I3: ATUAL | J3: RESIDUAL | K3: BRUTO | L3: LÍQUIDO
A4: 1 | B4: ITEM 1 | C4: 129868 | D4: 256513 | E4: =(C4-D4) -> -126645 | F4: 24283 | G4: =F4+D4 -> 280796 | H4: 1100916 | I4: 1073357 | J4: =I4-H4 -> -27559 | K4: =(I4-D4)/I4 -> 0.7610180024 | L4: =(I4-G4)/I4 -> 0.7383945882
A5: 2 | B5: ITEM 2 | C5: 237605 | D5: 85618 | E5: =(C5-D5) -> 151987 | F5: 10598 | G5: =F5+D5 -> 96216 | H5: 215534 | I5: 878162 | J5: =I5-H5 -> 662628 | K5: =(I5-D5)/I5 -> 0.9025031828 | L5: =(I5-G5)/I5 -> 0.8904347945
A6: 3 | B6: ITEM 3 | C6: 249420 | D6: 264259 | E6: -14839 | F6: 10527 | G6: 274786 | H6: 820719 | I6: 1193784 | J6: 373065 | K6: 0.778637509 | L6: 0.7698193308
A7: 4 | B7: ITEM 4 | C7: 226538 | D7: 293368 | E7: -66830 | F7: 20592 | G7: 313960 | H7: 620242 | I7: 420345 | J7: -199897 | K7: 0.3020780549 | L7: 0.2530897239
A8: 5 | B8: ITEM 5 | C8: 109478 | D8: 174003 | E8: -64525 | F8: 20392 | G8: 194395 | H8: 821177 | I8: 1175811 | J8: 354634 | K8: 0.8520144819 | L8: 0.8346715586
A9: 6 | B9: ITEM 6 | C9: 129160 | D9: 249567 | E9: -120407 | F9: 14490 | G9: 264057 | H9: 901263 | I9: 1015766 | J9: 114503 | K9: 0.7543066021 | L9: 0.7400415056
A10: 7 | B10: ITEM 7 | C10: 213785 | D10: 79255 | E10: 134530 | F10: 15582 | G10: 94837 | H10: 878528 | I10: 733751 | J10: -144777 | K10: 0.8919865186 | L10: 0.8707504317
A11: 8 | B11: ITEM 8 | C11: 128283 | D11: 122300 | E11: 5983 | F11: 21606 | G11: 143906 | H11: 838380 | I11: 955983 | J11: 117603 | K11: 0.8720688548 | L11: 0.8494680345
A12: 9 | B12: ITEM 9 | C12: 175438 | D12: 119943 | E12: 55495 | F12: 20667 | G12: 140610 | H12: 1073157 | I12: 924095 | J12: -149062 | K12: 0.8702049032 | L12: 0.8478403194
A13: 10 | B13: ITEM 10 | C13: 253755 | D13: 255187 | E13: -1432 | F13: 12347 | G13: 267534 | H13: 1141047 | I13: 1061074 | J13: -79973 | K13: 0.7595012223 | L13: 0.7478648991
C14: =SUM(C4:C13) -> 1853330 | D14: =SUM(D4:D13) -> 1900013 | E14: -46683 | F14: =SUM(F4:F13) -> 171084 | G14: =SUM(G4:G13) -> 2071097 | H14: 8410963 | I14: 9432128 | J14: 1021165 | K14: =SUM(K4:K13)/10 -> 0.7744319332 | L14: =SUM(L4:L13)/10 -> 0.7542375186
C17: COEFICIENTE DÍVIDA-PATRIMÔNIO
C18: CALENDÁRIO | D18: DÍVIDA | E18: PATRIMÔNIO
C19: 2007 | D19: 3613439 | E19: 3293202
C20: 2008 | D20: 3508776 | E20: 3441854
C21: 2009 | D21: 3719457 | E21: 3531844
C22: 2010 | D22: 3310212 | E22: 3354051
C23: 2011 | D23: 3945202 | E23: 3476155
C24: 2012 | D24: 3938152 | E24: 3538468
C25: 2013 | D25: 3733706 | E25: 3727037
C26: 2014 | D26: 3526698 | E26: 3425405
C27: 2015 | D27: 3632971 | E27: 3734041
C28: 2016 | D28: 3206487 | E28: 3677074
